bitfinex-derivatives/quotes_ETHF0:USTF0_20250908
["timestamp","ask_amount","ask_price","bid_price","bid_amount"]
[1757336979276,0.248,4344.6,4344.1,0.7302]
[1757336979477,0.248,4344.6,4344.5,1.0143]
[1757336980178,31.99889211,4345.2,4344.6,0.7302]
[1757336980386,0.248,4345.1,4344.6,0.7302]
[1757336980576,0.248,4345.1,4344.5,0.2841]
[1757336981688,0.248,4345.0,4344.6,0.7302]
[1757336981988,0.248,4344.9,4344.6,0.7302]
[1757336982190,0.248,4344.8,4344.6,0.7302]
[1757336982589,0.248,4344.8,4344.5,0.2841]
[1757336983289,0.248,4344.8,4344.6,0.7302]
[1757336983487,0.248,4344.8,4344.5,0.2841]
[1757336983888,0.248,4344.8,4344.6,0.7302]
[1757336984188,0.248,4344.8,4344.5,0.2841]
[1757336984488,0.248,4344.8,4344.6,0.7302]
[1757336984791,31.09178422,4345.2,4345.0,0.2841]
[1757336984989,31.09178422,4345.2,4345.1,0.7302]
[1757336985194,31.33878422,4345.2,4345.1,0.7302]
[1757336985688,31.45378422,4345.2,4345.1,0.7302]
[1757336986886,0.115,4345.2,4345.1,0.7302]
[1757336987089,11.3,4346.3,4345.1,0.7302]
[1757336987090,33.168,4346.0,4345.5,0.2841]
[1757336987286,33.168,4346.0,4345.8,0.7302]
[1757336987487,0.247,4345.9,4345.8,0.7302]
[1757336991894,0.6815,4345.8,4345.5,0.2841]
[1757336992202,0.247,4345.7,4345.6,0.7302]
[1757336993896,1.23509581,4345.9,4345.6,0.7302]
[1757336994104,0.247,4345.8,4345.6,0.7302]
[1757336994298,0.247,4345.8,4345.5,0.2841]
[1757336994598,0.246,4345.7,4345.5,0.2841]
[1757336994798,0.246,4345.7,4345.6,0.7302]
[1757336996104,0.9275,4345.7,4345.1,3.938]
[1757336996301,1.23509581,4345.5,4345.1,3.2078]
[1757336996506,0.246,4345.4,4345.1,3.2078]
[1757336996907,0.246,4345.4,4345.3,1.6383]
[1757336997100,0.7101,4345.4,4345.3,1.6383]
[1757336997299,1.168,4345.4,4345.3,1.6383]
[1757336998402,1.8495,4345.4,4345.3,0.7302]
[1757336998598,0.6815,4345.3,4345.1,3.938]
[1757336998795,1.168,4345.2,4345.1,4.3794]
[1757336999004,1.168,4345.2,4345.1,1.1716]
[1757336999601,1.168,4345.2,4345.1,1.6383]
[1757337000401,3.08459581,4345.2,4344.7,0.7302]
[1757337000613,0.922,4344.7,4344.6,4.3794]
[1757337000809,0.246,4344.7,4344.6,4.1159]
[1757337001206,0.246,4344.7,4344.6,8.1159]
[1757337001401,1.23509581,4345.2,4344.6,8.1159]
[1757337001597,36.3758,4346.0,4345.1,0.9081]
[1757337001598,1.23509581,4345.4,4345.1,0.9081]
[1757337001802,0.246,4345.3,4345.2,0.7302]
[1757337002010,0.246,4345.3,4345.2,1.6383]
[1757337002508,0.7101,4345.3,4345.2,1.6383]
[1757337003806,0.7101,4345.3,4345.0,0.2841]
[1757337003807,0.6815,4345.2,4345.0,0.7302]
[1757337004116,1.6035,4345.1,4345.0,0.7302]
[1757337004407,0.246,4345.3,4344.6,3.2078]
[1757337004408,0.922,4344.8,4344.7,1.1716]
[1757337004609,1.167,4344.8,4344.7,1.1716]
[1757337005607,34.335,4344.8,4344.7,1.1716]
[1757337006009,34.335,4344.8,4344.7,1.6713]
[1757337006506,33.6321,4344.8,4344.7,1.6713]
[1757337006705,33.8771,4344.8,4344.7,1.6713]
[1757337007107,34.3752,4344.8,4344.7,1.6713]
[1757337007306,35.1596,4344.8,4344.6,3.2078]
[1757337007507,34.3752,4344.8,4344.7,1.7303]
[1757337007805,1.7936,4344.7,4344.6,3.2078]
[1757337008411,1.7936,4344.7,4344.6,4.4384]
[1757337008604,2.0386,4344.7,4344.6,4.4384]
[1757337008809,2.0386,4344.7,4344.6,3.2078]
[1757337009809,1.7936,4344.7,4344.6,3.2078]
[1757337010110,0.7844,4344.6,4344.1,0.7573]
[1757337010312,0.5111,4344.2,4344.1,1.7303]
[1757337011109,2.0386,4344.2,4344.1,1.7303]
[1757337012016,1.2542,4344.2,4344.1,1.7303]
[1757337012715,1.24017295,4344.4,4344.0,3.4541]
[1757337012906,1.0092,4344.2,4344.1,0.7573]
[1757337013108,3.27777295,4344.2,4344.1,0.7573]
[1757337013509,3.27777295,4344.2,4344.1,1.2306]
[1757337016217,0.244,4344.2,4343.5,2.9615]
[1757337016421,0.5111,4343.6,4343.5,2.9615]
[1757337016615,1.5395,4343.6,4343.5,3.4612]
[1757337018016,2.0376,4343.6,4343.5,3.4612]
[1757337018718,0.2972,4344.0,4343.5,3.4612]
[1757337018922,1.23872585,4344.1,4344.0,1.257]
[1757337019123,1.48272585,4344.1,4344.0,1.257]
[1757337019323,2.26712585,4344.1,4344.0,1.257]
[1757337019525,2.96231625,4344.1,4344.0,1.257]
[1757337020718,0.2972,4344.0,4343.5,3.887]
[1757337020920,1.5395,4343.9,4343.8,0.4997]
[1757337021522,1.5395,4343.9,4343.8,1.257]
[1757337023325,1.23872585,4344.4,4343.8,1.257]
[1757337023530,1.5385,4344.3,4344.2,4.4648]
[1757337024127,1.72726892,4344.3,4344.2,4.4648]
[1757337024329,1.98236892,4344.3,4344.2,3.7075]
[1757337024523,2.22536892,4344.3,4344.2,3.7075]
[1757337024718,1.98236892,4344.3,4344.2,3.7075]
[1757337024925,2.22536892,4344.3,4344.2,3.7075]
[1757337025230,1.7936,4343.9,4343.8,0.4997]
[1757337025418,2.0366,4343.9,4343.8,0.4997]
[1757337025618,0.243,4343.9,4343.8,1.257]
[1757337025822,0.18876892,4344.3,4344.2,0.4997]
[1757337026132,0.243,4344.3,4344.2,0.4997]
[1757337026426,0.243,4344.3,4344.2,1.44072907]
[1757337026824,0.243,4344.3,4344.2,5.44072907]
[1757337027528,35.71022585,4345.0,4344.9,1.257]
[1757337027831,1.7936,4344.7,4344.6,3.2078]
[1757337028027,2.0366,4344.7,4344.6,3.7075]
[1757337028226,35.49632585,4345.0,4344.7,0.7573]
[1757337028531,35.49632585,4345.0,4344.9,1.257]
[1757337028532,36.00742585,4345.0,4344.9,1.257]
[1757337028735,36.25042585,4345.0,4344.9,1.257]
[1757337029128,36.00742585,4345.0,4344.9,1.257]
[1757337029322,35.71022585,4345.0,4344.9,1.257]
[1757337029627,34.41472585,4345.0,4344.9,1.257]
[1757337029829,33.419,4345.0,4344.9,1.257]
[1757337030029,34.2034,4345.0,4344.9,1.257]
[1757337030527,34.7145,4345.0,4344.9,1.257]
[1757337031130,34.2034,4345.0,4344.9,1.257]
[1757337031329,34.7145,4345.0,4344.9,1.257]
[1757337031524,35.5098,4345.0,4344.9,0.4997]
[1757337031733,35.5098,4345.0,4344.6,3.2078]
[1757337032031,1.7936,4344.7,4344.6,3.7075]
[1757337032228,33.176,4345.0,4344.6,7.7075]
[1757337032432,34.4715,4345.0,4344.9,1.257]
[1757337032631,34.7145,4345.0,4344.9,1.257]
[1757337033833,35.5098,4345.0,4344.9,0.4997]
[1757337034734,1.0092,4344.7,4344.6,3.7075]
[1757337034936,2.0366,4344.7,4344.6,3.7075]
[1757337035235,1.5385,4344.7,4344.6,4.4648]
[1757337035629,1.5385,4344.7,4344.6,4.9771]
[1757337036035,1.5385,4344.7,4344.6,4.2198]
[1757337036036,2.0154,4344.7,4344.6,4.2198]
[1757337036239,2.0154,4344.7,4344.6,3.2078]
[1757337037627,0.3037,4344.5,4344.1,3.2078]
[1757337037937,0.3037,4344.5,4344.1,4.9812]
[1757337037938,1.2495,4344.2,4344.1,4.9812]
[1757337038142,0.243,4344.2,4344.1,4.9812]
[1757337038437,0.243,4344.2,4344.1,4.212]
[1757337039027,1.23872585,4344.9,4344.1,8.9812]
[1757337039235,1.9684,4344.8,4344.7,3.7201]
[1757337040132,1.4915,4344.8,4344.7,4.9812]
[1757337040733,1.2495,4344.8,4344.7,4.9812]
[1757337040939,1.4915,4344.8,4344.7,4.9812]
[1757337041140,34.2263,4345.0,4344.9,1.0042]
[1757337041339,34.9647,4345.0,4344.9,1.7734]
[1757337042338,33.176,4345.0,4344.9,1.7734]
[1757337042541,33.418,4345.0,4344.9,1.7734]
[1757337042746,35.4481,4345.0,4344.9,1.0042]
[1757337045843,35.4481,4345.0,4344.9,0.5123]
[1757337049336,35.2061,4345.0,4344.9,0.5123]
[1757337049537,35.4481,4345.0,4344.9,0.5123]
[1757337049734,35.2061,4345.0,4344.9,1.0042]
[1757337049937,35.4481,4345.0,4344.9,1.0042]
[1757337050947,35.4481,4345.0,4344.9,1.7734]
[1757337051849,34.9024,4345.0,4344.9,1.7734]
[1757337052050,33.9291,4345.0,4344.9,1.7734]
[1757337052352,33.418,4345.0,4344.9,1.7734]
[1757337052842,33.176,4345.0,4344.9,1.7734]
[1757337053045,33.418,4345.0,4344.9,6.09228539]
[1757337053246,1.0568,4345.5,4345.0,0.2872]
[1757337053436,1.2495,4345.5,4345.4,4.9812]
[1757337053642,1.4915,4345.5,4345.4,4.9812]
[1757337054039,2.2721,4345.5,4345.4,4.9812]
[1757337055847,2.2721,4345.5,4345.4,4.212]
[1757337057447,1.2495,4345.5,4345.4,4.9812]
[1757337057650,1.4905,4345.5,4345.4,4.9812]
[1757337057949,2.2711,4345.5,4345.4,4.9812]
[1757337059149,1.23872585,4346.2,4345.6,0.7692]
[1757337059343,33.6644,4346.4,4346.3,1.0042]
[1757337059543,33.9054,4346.4,4346.3,1.7734]
[1757337059745,34.1413,4346.4,4346.3,1.7734]
[1757337059944,34.6585,4346.4,4346.3,1.7734]
[1757337060549,33.168,4346.4,4346.3,1.7734]
[1757337060851,0.241,4346.4,4346.3,1.0042]
[1757337061051,0.241,4346.4,4346.3,5.0042]
[1757337061448,0.241,4346.4,4346.3,5.7734]
[1757337061653,0.7531,4347.1,4346.3,5.0042]
[1757337061857,1.7264,4347.1,4347.0,4.9812]
[1757337062252,0.7531,4347.4,4347.3,1.0042]
[1757337062453,0.241,4347.5,4347.4,0.7692]
[1757337062761,0.241,4347.5,4347.4,1.7734]
[1757337064048,1.0568,4348.5,4348.0,1.0042]
[1757337064252,0.7531,4348.4,4348.3,4.9812]
[1757337064460,0.241,4348.7,4348.3,4.9812]
[1757337064651,0.241,4348.7,4348.4,0.7692]
[1757337064652,0.9941,4348.7,4348.4,0.7692]
[1757337064857,0.7531,4348.7,4348.6,1.7734]
[1757337065054,0.9941,4348.7,4348.6,1.7734]
[1757337065251,0.3037,4349.0,4348.6,1.7734]
[1757337065455,0.3037,4349.0,4348.0,0.4019]
[1757337065456,1.5532,4349.0,4348.9,4.212]
[1757337065656,1.7942,4349.0,4348.9,4.9939]
[1757337065857,1.5532,4349.0,4348.9,4.9939]
[1757337066059,0.7531,4349.0,4348.9,4.9939]
[1757337066362,0.241,4349.0,4348.9,4.9939]
[1757337066658,1.4665,4349.0,4348.9,4.9939]
[1757337067360,1.2255,4349.0,4348.9,4.9939]
[1757337068863,2.0398,4349.5,4349.4,1.0031]
[1757337069064,2.2808,4349.5,4349.4,4.2109]
[1757337069457,2.2808,4349.5,4349.4,3.69]
[1757337070366,2.2808,4349.5,4349.4,3.2078]
[1757337070761,2.2808,4349.5,4349.4,4.2109]
[1757337070762,2.0398,4349.5,4349.4,4.2109]
[1757337071167,2.0398,4349.5,4349.4,3.69]
[1757337072464,2.0398,4349.5,4349.4,3.2078]
[1757337073362,2.0398,4349.5,4349.4,3.69]
[1757337073562,2.2808,4349.5,4349.4,3.69]
[1757337074165,2.2808,4349.5,4349.4,3.2078]
[1757337075672,2.2808,4349.5,4349.4,3.69]
[1757337077280,2.2808,4349.5,4349.4,3.2078]
[1757337077582,2.0344,4349.0,4348.9,3.2078]
[1757337077777,1.5651,4349.0,4348.2,3.2078]
[1757337077984,0.5152,4348.3,4348.2,4.2109]
[1757337078180,1.4355,4348.3,4348.2,4.2109]
[1757337078375,1.4355,4348.3,4348.2,4.9928]
[1757337079181,0.21,4348.3,4348.2,4.9928]
[1757337079586,1.7361,4348.9,4348.8,0.4822]
[1757337079786,1.9771,4348.9,4348.8,0.4822]
[1757337082385,1.9771,4348.9,4348.8,1.0031]
[1757337083086,1.9771,4348.9,4348.8,0.4822]
[1757337084188,1.7361,4348.9,4348.8,1.0031]
[1757337084487,1.9771,4348.9,4348.8,1.0031]
[1757337085383,1.9771,4348.9,4348.8,0.4822]
[1757337087085,1.4665,4348.9,4348.8,4.9928]
[1757337087291,1.2255,4348.9,4348.8,4.9928]
[1757337087489,1.4665,4348.9,4348.8,4.9928]
[1757337087789,1.9771,4348.9,4348.8,4.2109]
[1757337088792,1.9771,4348.9,4348.8,3.9809]
[1757337089594,1.9771,4348.9,4348.8,4.6424]
[1757337090097,1.9771,4348.9,4348.8,3.9809]
[1757337090993,1.4665,4348.9,4348.8,4.6424]
[1757337091294,0.7103,4349.3,4349.2,1.6646]
[1757337091597,1.4665,4349.3,4349.2,1.6646]
[1757337091790,1.2255,4349.3,4349.2,1.6646]
[1757337091991,1.4665,4349.3,4349.2,1.6646]
[1757337092299,2.70522585,4349.3,4349.2,1.6646]
[1757337094595,0.5152,4349.2,4349.1,0.4822]
[1757337094793,1.7361,4349.2,4349.1,0.4822]
[1757337094993,1.7361,4349.2,4349.1,1.0031]
[1757337095391,1.4665,4349.2,4349.1,1.6685]
[1757337095595,0.9513,4349.2,4349.1,1.6685]
[1757337096394,1.4356,4349.2,4349.1,1.6685]
[1757337096591,1.1946,4349.2,4349.1,1.6685]
[1757337096802,3.2078,4350.4,4349.3,1.6666]
[1757337096803,2.00902585,4349.6,4349.3,1.6666]
[1757337096996,0.241,4349.5,4349.4,3.8723]
[1757337097301,0.7703,4349.6,4349.5,1.6666]
[1757337097500,1.0113,4349.6,4349.5,1.6666]
[1757337097901,1.4956,4349.6,4349.5,1.6666]
[1757337098604,2.0502,4349.5,4349.4,3.2078]
[1757337098801,2.0502,4349.5,4349.4,2.97760001]
[1757337099198,2.0502,4349.5,4349.4,3.97970001]
[1757337099595,0.7703,4349.5,4349.4,4.64420001]
[1757337099994,1.0113,4349.5,4349.4,4.64420001]
[1757337100304,2.0484,4350.0,4349.9,0.5116]
[1757337100504,2.2894,4350.0,4349.9,0.5116]
[1757337100705,2.2894,4350.0,4349.9,3.7194]
[1757337100898,2.0484,4350.0,4349.9,3.2078]
[1757337101101,3.52812585,4350.0,4349.4,3.2078]
[1757337101296,3.52812585,4350.0,4348.8,3.2078]
[1757337101297,1.2799,4349.5,4348.8,3.2078]
[1757337101603,1.2799,4349.5,4349.3,1.6666]
[1757337101604,1.2546,4349.4,4349.3,1.6666]
[1757337101804,1.4956,4349.4,4349.3,4.8744]
[1757337102504,1.23872585,4349.9,4349.3,4.8744]
[1757337102700,0.4843,4349.6,4349.5,1.0021]
[1757337102899,1.2546,4349.6,4349.5,1.6666]
[1757337103204,1.7447,4349.6,4349.5,1.0021]
[1757337103600,1.7447,4349.4,4349.3,3.7194]
[1757337103907,1.9857,4349.4,4349.3,3.7194]
[1757337104500,1.9857,4349.4,4349.3,3.2078]
[1757337105409,1.7447,4349.4,4349.3,4.2099]
[1757337105602,1.9857,4349.4,4349.3,4.2099]
[1757337105798,1.9857,4349.4,4349.3,3.2078]
[1757337106308,1.2799,4349.0,4348.9,1.0021]
[1757337106612,1.5209,4349.0,4348.9,1.0021]
[1757337106811,3.2078,4349.9,4349.1,0.6645]
[1757337106812,2.00925698,4349.9,4349.1,0.6645]
[1757337107106,1.23895698,4350.1,4349.9,0.6645]
[1757337107410,0.4843,4350.1,4350.0,1.6666]
[1757337107609,0.9744,4350.1,4350.0,1.0021]
[1757337107810,1.7447,4350.1,4350.0,1.0021]
[1757337108011,1.9857,4350.1,4350.0,1.0021]
[1757337108207,1.9857,4350.1,4349.8,3.2078]
[1757337108414,1.7447,4349.9,4349.8,4.2099]
[1757337108714,1.9857,4349.9,4349.8,4.2099]
[1757337113211,1.4956,4349.9,4349.8,4.8744]
[1757337113415,1.0113,4349.9,4349.8,4.8744]
[1757337113619,0.241,4349.9,4349.8,4.8744]
[1757337113813,0.2983,4350.5,4349.8,4.2099]
[1757337114013,1.4956,4350.4,4350.3,1.6666]
[1757337114213,1.9857,4350.4,4350.3,4.2099]
[1757337116715,1.9857,4350.4,4350.3,3.2078]
[1757337116921,1.9857,4350.4,4350.3,3.7194]
[1757337117220,1.9857,4350.4,4350.3,3.2078]
[1757337118421,0.9744,4349.7,4349.6,3.7194]
[1757337118616,1.9857,4349.7,4349.6,4.2099]
[1757337119015,1.9857,4349.7,4349.6,3.2078]
[1757337119215,2.0502,4349.0,4348.9,3.7194]
[1757337119416,2.2912,4349.0,4348.9,3.7194]
[1757337120120,2.2912,4349.0,4348.9,3.2078]
[1757337120724,6.52114,4349.0,4348.9,3.2078]
[1757337120916,2.0502,4348.5,4348.4,3.2078]
[1757337121117,2.2912,4348.5,4348.4,3.2078]
[1757337121924,2.2912,4348.5,4348.4,3.7194]
[1757337122123,0.7703,4348.9,4348.8,1.0021]
[1757337122325,1.4956,4348.9,4348.8,1.6666]
[1757337122520,0.3055,4348.5,4348.4,3.2078]
[1757337122720,2.2912,4348.5,4348.4,3.2078]
[1757337123519,2.2912,4348.5,4348.4,3.7194]
[1757337123925,1.3168,4348.5,4348.4,4.8744]
[1757337124124,1.0113,4348.5,4348.4,4.8744]
[1757337124515,0.241,4348.5,4348.4,4.8744]
[1757337124829,1.0758,4349.0,4348.7,1.0021]
[1757337125018,1.0758,4349.0,4348.8,0.84196115]
[1757337125019,0.241,4348.9,4348.8,0.84196115]
[1757337125222,0.241,4348.9,4348.8,0.68906115]
[1757337125223,1.9857,4348.9,4348.8,0.68906115]
[1757337125419,1.9857,4348.9,4348.8,0.5116]
[1757337125819,1.9857,4348.9,4348.8,1.0021]
[1757337126321,1.5032,4348.9,4348.8,1.6419]
[1757337126628,1.9902,4348.9,4348.8,1.0021]
[1757337126820,0.7703,4348.9,4348.8,1.6419]
[1757337127021,0.241,4348.9,4348.8,1.81272232]
[1757337128226,33.4345,4349.5,4348.8,1.17292232]
[1757337128523,35.1815,4349.5,4349.4,3.6809]
[1757337128723,35.4225,4349.5,4349.4,3.6809]
[1757337129331,33.37,4349.5,4349.4,5.00984497]
[1757337129623,33.37,4349.5,4349.4,4.8271]
[1757337129828,34.1381,4349.5,4349.4,4.8271]
[1757337130031,35.4101,4349.5,4349.4,4.1873]
[1757337130331,34.4312,4349.5,4349.4,4.8271]
[1757337130531,34.1381,4349.5,4349.4,4.8271]
[1757337130731,34.9231,4349.5,4349.4,4.8271]
[1757337132230,0.241,4349.5,4349.4,3.9873]
[1757337132427,0.241,4349.5,4349.4,4.16077926]
[1757337132735,0.241,4349.5,4349.4,4.80057926]
[1757337133423,1.501,4349.5,4349.4,4.80057926]
[1757337133623,1.0091,4349.5,4349.4,4.80057926]
[1757337134836,0.3055,4350.5,4349.5,0.6398]
[1757337135036,1.5655,4350.0,4349.9,4.1873]
[1757337135231,2.2935,4350.0,4349.9,4.1873]
[1757337136035,2.0525,4350.0,4349.9,4.1873]
[1757337136337,2.2935,4350.0,4349.9,4.1873]
[1757337137141,0.7681,4350.0,4349.9,5.00051192]
[1757337137443,1.5655,4350.5,4350.4,0.9795]
[1757337137643,2.0525,4350.5,4350.4,4.1873]
[1757337137835,0.7681,4350.5,4350.4,4.8271]
[1757337138038,1.26,4350.8,4350.7,0.9795]
[1757337138236,1.988,4350.8,4350.7,0.9795]
[1757337139249,1.747,4350.8,4350.7,0.9795]
[1757337139444,1.988,4350.8,4350.7,0.9795]
[1757337142338,1.747,4350.8,4350.7,0.9795]
[1757337142542,1.988,4350.8,4350.7,0.9795]
[1757337143245,0.2931,4350.5,4350.4,3.2078]
[1757337143450,1.7941,4350.5,4350.4,4.354]
[1757337143640,1.7941,4350.5,4350.4,4.8271]
[1757337143641,1.0091,4350.5,4350.4,4.8271]
[1757337143841,0.241,4350.5,4350.4,4.8271]
[1757337144350,1.501,4350.5,4350.4,4.8271]
[1757337144544,1.7941,4350.5,4350.4,4.8271]
[1757337145440,2.2811,4350.5,4350.4,3.2078]
[1757337146242,2.2811,4350.5,4350.4,3.6809]
[1757337146444,2.2811,4350.5,4350.4,3.2078]
[1757337148452,2.0401,4350.0,4349.9,3.6809]
[1757337148648,2.2811,4350.0,4349.9,3.6809]
[1757337148851,2.2811,4350.0,4349.9,4.1873]
[1757337149152,1.7941,4350.0,4349.9,4.8271]
[1757337149554,1.0091,4350.0,4349.9,4.8271]
[1757337149852,0.7681,4350.4,4349.9,4.8271]
[1757337150051,0.7681,4350.2,4350.1,0.9795]
[1757337150256,34.88,4350.9,4350.8,0.9795]
[1757337150646,34.393,4350.9,4350.8,1.6193]
[1757337150847,34.634,4350.9,4350.8,1.6193]
[1757337151350,35.121,4350.9,4350.8,0.9795]
[1757337151555,35.121,4350.9,4350.8,0.4731]
[1757337151849,1.747,4350.7,4350.6,3.6809]
[1757337152045,1.988,4350.7,4350.6,4.1873]
[1757337152854,1.988,4350.7,4350.6,3.2078]
[1757337153048,1.988,4350.7,4350.6,3.6809]
[1757337153557,1.988,4350.7,4350.6,3.2078]
[1757337154254,1.988,4350.7,4350.1,3.2078]
[1757337154255,1.2199,4350.7,4350.1,3.2078]
[1757337154458,1.747,4350.2,4350.1,3.2078]
[1757337154655,1.988,4350.2,4349.5,3.2078]
[1757337154857,1.747,4349.6,4349.5,3.6809]
[1757337155152,1.988,4349.6,4349.5,3.6809]
[1757337155953,1.988,4349.6,4349.5,4.1873]
[1757337156151,1.0091,4349.6,4349.5,4.8027]
[1757337156356,0.7123,4349.9,4349.5,4.1873]
[1757337156558,0.9533,4349.8,4349.7,1.5695]
[1757337156753,1.9462,4349.8,4349.7,0.9541]
[1757337157450,1.2339,4349.8,4349.5,3.2078]
[1757337157764,1.7052,4349.6,4349.5,3.6977]
[1757337158062,1.7052,4349.6,4349.5,4.1619]
[1757337158355,1.9462,4349.6,4349.5,4.1619]
[1757337159954,0.7123,4349.6,4349.5,4.7773]
[1757337160149,0.9533,4349.6,4349.5,4.7773]
[1757337160358,0.2931,4350.0,4349.5,4.7773]
[1757337160555,0.241,4349.6,4349.5,4.7773]
[1757337161052,0.7123,4349.9,4349.8,0.9541]
[1757337161360,11.604528,4361.6,4350.0,3.4849]
[1757337161361,1.23864801,4350.8,4350.0,3.4849]
[1757337161656,0.7123,4351.9,4350.0,3.4849]
[1757337161657,0.9947,4352.5,4350.7,4.01768088]
[1757337161959,0.9947,4352.5,4350.6,0.41373]
[1757337161960,2.0722372,4353.7,4352.4,3.2078]
[1757337162254,0.2824,4354.0,4352.9,3.1878]
[1757337162255,0.52845739,4353.5,4352.9,3.1878]
[1757337162461,1.24075739,4353.5,4352.9,3.1878]
[1757337162964,0.241,4353.4,4352.9,3.1878]
[1757337163161,0.00605739,4353.5,4352.9,3.1878]
[1757337163459,0.00605739,4353.5,4353.4,3.2078]
[1757337163652,0.24705739,4353.5,4353.4,3.2078]
[1757337163857,0.95935739,4353.5,4353.4,3.2078]
[1757337164056,1.24175739,4353.5,4353.4,3.2078]
[1757337165063,0.24705739,4353.5,4353.4,3.2078]
[1757337165254,0.00605739,4353.5,4353.4,3.2078]
[1757337165456,0.24705739,4353.5,4353.4,3.2078]
[1757337165662,0.00605739,4353.5,4353.4,3.2078]
[1757337165958,0.24705739,4353.5,4353.4,3.2078]
[1757337166157,0.00605739,4353.5,4353.4,3.2078]
[1757337166864,1.00075739,4353.5,4353.4,3.2078]
[1757337167061,1.99365739,4353.5,4353.4,3.2078]
[1757337167857,2.61721437,4353.5,4353.4,3.2078]
[1757337168165,0.7123,4355.8,4353.4,11.59922889]
[1757337168360,0.7123,4355.7,4355.6,3.2078]
[1757337168561,3.4902,4356.5,4355.6,3.2078]
[1757337168562,0.62355698,4355.8,4355.6,3.2078]
[1757337168761,0.7123,4356.4,4355.6,3.4498]
[1757337168953,0.7123,4356.9,4356.3,3.2078]
[1757337169265,3.2078,4358.5,4356.8,3.2078]
[1757337169465,3.2078,4358.5,4357.8,3.2078]
[1757337169663,3.4902,4358.5,4357.8,3.2078]
[1757337169861,0.7123,4358.4,4357.8,3.2078]
[1757337170057,0.9563,4358.4,4358.3,3.2078]
[1757337170467,0.7123,4358.4,4358.3,3.2078]
[1757337170964,0.244,4358.5,4358.3,3.2078]
[1757337171459,0.244,4358.6,4358.3,3.2078]
[1757337171660,0.8823,4358.9,4358.3,3.2078]
[1757337171863,0.62355698,4358.8,4358.3,3.2078]
[1757337172060,1.33585698,4358.8,4358.3,3.2078]
[1757337172257,0.414,4358.9,4358.3,3.2078]
[1757337172559,3.4902,4360.0,4358.3,3.2078]
[1757337172560,0.9947,4361.0,4358.8,3.2078]
[1757337172758,3.4902,4361.0,4360.0,3.2078]
[1757337172964,3.2078,4360.3,4359.3,3.2078]
[1757337173168,0.7123,4360.3,4359.3,3.2078]
[1757337173463,3.2078,4360.9,4359.0,3.2078]
[1757337173661,0.9947,4362.5,4360.4,3.2078]
[1757337173861,0.69476644,4361.7,4360.5,0.172]
[1757337174061,0.7123,4361.9,4361.8,3.2078]
[1757337174262,0.2824,4362.5,4361.8,3.2078]
[1757337174263,0.9947,4362.5,4361.8,3.2078]
[1757337174464,0.9947,4362.5,4362.3,3.2078]
[1757337174762,0.9947,4362.5,4359.7,34.12718]
[1757337174763,0.7123,4362.4,4361.7,3.2078]
[1757337174961,1.40706644,4361.8,4361.7,3.2078]
[1757337175462,0.7123,4361.4,4360.6,3.2078]
[1757337175662,0.2824,4361.0,4360.6,3.2078]
[1757337175858,0.7123,4360.9,4360.6,3.2078]
[1757337176062,0.5334,4361.0,4360.6,3.2078]
[1757337176259,0.7123,4360.9,4360.1,3.2078]
[1757337176463,0.5334,4361.0,4360.1,3.2078]
[1757337176965,0.2824,4360.5,4360.1,3.2078]
[1757337177165,0.7123,4360.4,4360.1,3.2078]
[1757337177367,0.251,4360.4,4359.6,3.2078]
[1757337177971,0.7123,4360.3,4359.6,3.2078]
[1757337178170,0.251,4360.3,4359.6,3.2078]
[1757337178468,0.7123,4359.9,4359.6,3.2078]
[1757337178767,0.2824,4360.0,4359.6,3.2078]
[1757337179065,0.7123,4359.9,4359.1,3.2078]
[1757337179268,0.2824,4360.0,4359.1,3.2078]
[1757337179568,0.2824,4359.0,4358.5,3.2078]
[1757337179766,0.7123,4358.8,4358.5,3.2078]
[1757337180167,0.7123,4358.7,4358.5,3.2078]
[1757337180371,0.7123,4358.4,4358.0,3.2078]
[1757337180671,0.7123,4358.2,4357.5,3.2078]
[1757337180875,0.9633,4358.2,4357.5,3.2078]
[1757337181468,0.7123,4357.9,4357.5,3.2078]
[1757337181668,0.7123,4356.9,4356.8,3.2078]
[1757337183168,0.9633,4356.9,4356.8,3.2078]
[1757337183571,0.7123,4358.8,4356.8,7.68832]
[1757337183767,33.3534,4360.5,4358.1,1.03256]
[1757337183768,3.2078,4360.1,4358.1,1.03256]
[1757337183972,0.2824,4361.0,4359.9,3.2078]
[1757337184372,0.7123,4360.9,4359.9,3.2078]
[1757337185074,0.2824,4361.0,4359.9,3.2078]
[1757337185371,0.7123,4360.9,4359.9,3.2078]
[1757337185571,0.2833,4360.0,4359.9,3.2078]
[1757337185777,1.2122,4360.0,4359.2,3.2078]
[1757337186172,0.254,4359.9,4359.2,3.2078]
[1757337186478,0.254,4359.9,4359.3,0.0128]
[1757337186681,0.2833,4360.5,4359.7,3.2078]
[1757337186974,0.254,4360.4,4359.7,3.2078]
[1757337187678,0.2833,4360.0,4359.7,3.2078]
[1757337188075,0.6749,4359.9,4359.0,3.2078]
[1757337188477,0.2833,4359.5,4359.0,3.2078]
[1757337188773,0.254,4359.4,4358.5,3.2078]
[1757337189178,0.2833,4359.0,4358.5,3.2078]
[1757337189375,0.254,4358.9,4358.5,3.2078]